[Event "Titled Tuesday Blitz October 04 Late 2022"]
[White "Al Hosani, Omran"]
[Black "Sarana, Alexey"]
[WhiteFideId "9308733"]
[BlackFideId "24133795"]
[WhiteElo "2167"]
[BlackElo "2689"]
[Result "1-0"]
[Round "02"]
[TimeControl "180+1"]
[Date "2022.10.04"]
[WhiteClock "0:00:09"]
[BlackClock "0:00:05"]

1. d4 {[%clk 0:02:59]}  Nf6 {[%clk 0:03:00]} 2. c4 {[%clk 0:02:59]}  e6 {[%clk 0:03:00]} 3. Nc3 {[%clk 0:02:59]}  d5 {[%clk 0:02:59]} 4. e3 {[%clk 0:02:57]}  Bb4 {[%clk 0:02:56]} 5. Qa4+ {[%clk 0:02:56]}  Nc6 {[%clk 0:02:56]} 6. Qc2 {[%clk 0:02:57]}  O-O {[%clk 0:02:55]} 7. Nf3 {[%clk 0:02:57]}  Bd6 {[%clk 0:02:51]} 8. Bd3 {[%clk 0:02:55]}  Nb4 {[%clk 0:02:50]} 9. Qb1 {[%clk 0:02:54]}  Nxd3+ {[%clk 0:02:43]} 10. Qxd3 {[%clk 0:02:54]}  dxc4 {[%clk 0:02:35]} 11. Qxc4 {[%clk 0:02:53]}  a6 {[%clk 0:02:36]} 12. e4 {[%clk 0:02:47]}  b5 {[%clk 0:02:31]} 13. Qe2 {[%clk 0:02:46]}  Be7 {[%clk 0:02:30]} 14. a3 {[%clk 0:02:40]}  Bb7 {[%clk 0:02:30]} 15. O-O {[%clk 0:02:40]}  c5 {[%clk 0:02:30]} 16. Rd1 {[%clk 0:02:40]}  cxd4 {[%clk 0:02:30]} 17. Nxd4 {[%clk 0:02:40]}  Qc7 {[%clk 0:02:28]} 18. Bg5 {[%clk 0:02:32]}  h6 {[%clk 0:01:55]} 19. Bh4 {[%clk 0:01:33]}  Rfd8 {[%clk 0:01:50]} 20. Bg3 {[%clk 0:01:31]}  Qb6 {[%clk 0:01:45]} 21. Nf3 {[%clk 0:01:30]}  Rac8 {[%clk 0:01:42]} 22. Rac1 {[%clk 0:01:30]}  Rxd1+ {[%clk 0:01:41]} 23. Rxd1 {[%clk 0:01:30]}  b4 {[%clk 0:01:40]} 24. axb4 {[%clk 0:01:27]}  Qxb4 {[%clk 0:01:39]} 25. Rd4 {[%clk 0:01:22]}  Qa5 {[%clk 0:01:38]} 26. h3 {[%clk 0:01:18]}  Qb6 {[%clk 0:01:21]} 27. Na4 {[%clk 0:00:57]}  Qb3 {[%clk 0:01:18]} 28. Nc3 {[%clk 0:00:54]}  Bc5 {[%clk 0:01:07]} 29. Rd3 {[%clk 0:00:47]}  Qb4 {[%clk 0:01:05]} 30. e5 {[%clk 0:00:32]}  Nd5 {[%clk 0:01:04]} 31. Ne4 {[%clk 0:00:30]}  Be7 {[%clk 0:01:03]} 32. Nd6 {[%clk 0:00:29]}  Rc1+ {[%clk 0:01:02]} 33. Kh2 {[%clk 0:00:30]}  Bc6 {[%clk 0:01:01]} 34. Rd4 {[%clk 0:00:29]}  Qa5 {[%clk 0:00:49]} 35. Qd2 {[%clk 0:00:19]}  Qa1 {[%clk 0:00:48]} 36. Bh4 {[%clk 0:00:12]}  Bf8 {[%clk 0:00:38]} 37. Rc4 {[%clk 0:00:06]}  Rd1 {[%clk 0:00:29]} 38. Qc2 {[%clk 0:00:03]}  Bd7 {[%clk 0:00:29]} 39. Kg3 {[%clk 0:00:02]}  f5 {[%clk 0:00:18]} 40. exf6 {[%clk 0:00:02]}  Bxd6+ {[%clk 0:00:18]} 41. Kg4 {[%clk 0:00:03]}  e5+ {[%clk 0:00:16]} 42. Kh5 {[%clk 0:00:03]}  Be8+ {[%clk 0:00:16]} 43. Kg4 {[%clk 0:00:03]}  Bd7+ {[%clk 0:00:16]} 44. Kh5 {[%clk 0:00:03]}  Be8+ {[%clk 0:00:12]} 45. Kg4 {[%clk 0:00:04]}  h5+ {[%clk 0:00:12]} 46. Kf5 {[%clk 0:00:04]}  Nxf6 {[%clk 0:00:06]} 47. Bxf6 {[%clk 0:00:04]}  e4 {[%clk 0:00:07]} 48. Rc8 {[%clk 0:00:03]}  Qa5+ {[%clk 0:00:06]} 49. Ne5 {[%clk 0:00:02]}  Qb5 {[%clk 0:00:05]} 50. Qc4+ {[%clk 0:00:02]}  Qxc4 {[%clk 0:00:05]} 51. Nxc4 {[%clk 0:00:02]}  Kf7 {[%clk 0:00:04]} 52. Be5 {[%clk 0:00:03]}  Bd7+ {[%clk 0:00:03]} 53. Kf4 {[%clk 0:00:03]}  g5+ {[%clk 0:00:03]} 54. Kxe4 {[%clk 0:00:03]}  Be7 {[%clk 0:00:04]} 55. Rc7 {[%clk 0:00:03]}  Ke8 {[%clk 0:00:03]} 56. Ra7 {[%clk 0:00:03]}  Bb5 {[%clk 0:00:03]} 57. Ne3 {[%clk 0:00:04]}  Bd3+ {[%clk 0:00:02]} 58. Kd4 {[%clk 0:00:04]}  Rd2 {[%clk 0:00:02]} 59. Kc3 {[%clk 0:00:04]}  Rxf2 {[%clk 0:00:02]} 60. Kxd3 {[%clk 0:00:05]}  g4 {[%clk 0:00:01]} 61. hxg4 {[%clk 0:00:05]}  hxg4 {[%clk 0:00:02]} 62. Nxg4 {[%clk 0:00:05]}  Rxg2 {[%clk 0:00:02]} 63. Nf6+ {[%clk 0:00:06]}  Kf8 {[%clk 0:00:03]} 64. Nd5 {[%clk 0:00:06]}  Bc5 {[%clk 0:00:02]} 65. Rxa6 {[%clk 0:00:06]}  Rg4 {[%clk 0:00:03]} 66. Bc3 {[%clk 0:00:06]}  Rh4 {[%clk 0:00:03]} 67. Rc6 {[%clk 0:00:06]}  Bg1 {[%clk 0:00:03]} 68. Nf6 {[%clk 0:00:06]}  Ke7 {[%clk 0:00:02]} 69. Ne4 {[%clk 0:00:06]}  Rh3+ {[%clk 0:00:02]} 70. Kc2 {[%clk 0:00:06]}  Kd7 {[%clk 0:00:03]} 71. Rc4 {[%clk 0:00:06]}  Rh2+ {[%clk 0:00:03]} 72. Kb3 {[%clk 0:00:06]}  Rh1 {[%clk 0:00:04]} 73. Bd4 {[%clk 0:00:07]}  Bh2 {[%clk 0:00:03]} 74. Nc3 {[%clk 0:00:06]}  Bd6 {[%clk 0:00:03]} 75. Ra4 {[%clk 0:00:06]}  Bb8 {[%clk 0:00:02]} 76. Ra6 {[%clk 0:00:06]}  Kc8 {[%clk 0:00:02]} 77. Kc4 {[%clk 0:00:06]}  Rh4 {[%clk 0:00:02]} 78. b4 {[%clk 0:00:05]}  Be5 {[%clk 0:00:02]} 79. Nb5 {[%clk 0:00:05]}  Kb7 {[%clk 0:00:02]} 80. Re6 {[%clk 0:00:05]}  Bg3 {[%clk 0:00:02]} 81. Re7+ {[%clk 0:00:05]}  Kc6 {[%clk 0:00:02]} 82. Re6+ {[%clk 0:00:05]}  Kd7 {[%clk 0:00:03]} 83. Rg6 {[%clk 0:00:04]}  Bh2 {[%clk 0:00:03]} 84. Nc3 {[%clk 0:00:04]}  Be5 {[%clk 0:00:04]} 85. Ne2 {[%clk 0:00:05]}  Bd6 {[%clk 0:00:04]} 86. b5 {[%clk 0:00:05]}  Bb8 {[%clk 0:00:04]} 87. b6 {[%clk 0:00:05]}  Kc8 {[%clk 0:00:04]} 88. Nc3 {[%clk 0:00:06]}  Kb7 {[%clk 0:00:04]} 89. Rg7+ {[%clk 0:00:06]}  Ka6 {[%clk 0:00:04]} 90. Nd5 {[%clk 0:00:07]}  Rh1 {[%clk 0:00:04]} 91. Nb4+ {[%clk 0:00:07]}  Ka5 {[%clk 0:00:04]} 92. Nc6+ {[%clk 0:00:08]}  Ka6 {[%clk 0:00:05]} 93. Nxb8+ {[%clk 0:00:08]}  Ka5 {[%clk 0:00:05]} 94. Nc6+ {[%clk 0:00:09]}  Ka4 {[%clk 0:00:05]} 95. Ra7# {[%clk 0:00:09]} 1-0


[Site "https://www.chess.com"]

[Event "Titled Tuesday Blitz October 04 Late 2022"]
[White "Barria Zuniga, Daniel"]
[Black "Sorokin, Aleksey"]
[WhiteFideId "3400816"]
[BlackFideId "24176460"]
[WhiteElo "2414"]
[BlackElo "2476"]
[Result "0-1"]
[Round "02"]
[TimeControl "180+1"]
[Date "2022.10.04"]
[WhiteClock "0:00:26"]
[BlackClock "0:01:18"]

1. d4 {[%clk 0:03:00]}  Nf6 {[%clk 0:02:59]} 2. c4 {[%clk 0:03:00]}  g6 {[%clk 0:02:58]} 3. Nc3 {[%clk 0:03:00]}  d5 {[%clk 0:02:58]} 4. Qa4+ {[%clk 0:02:59]}  Bd7 {[%clk 0:02:56]} 5. Qb3 {[%clk 0:02:56]}  dxc4 {[%clk 0:02:56]} 6. Qxc4 {[%clk 0:02:57]}  Bg7 {[%clk 0:02:55]} 7. Nf3 {[%clk 0:02:57]}  O-O {[%clk 0:02:50]} 8. g3 {[%clk 0:02:57]}  Nc6 {[%clk 0:02:47]} 9. Bg2 {[%clk 0:02:56]}  Bf5 {[%clk 0:02:39]} 10. O-O {[%clk 0:02:54]}  Ne4 {[%clk 0:02:39]} 11. e3 {[%clk 0:02:46]}  Nd6 {[%clk 0:02:27]} 12. Qe2 {[%clk 0:02:44]}  e5 {[%clk 0:02:25]} 13. d5 {[%clk 0:02:33]}  e4 {[%clk 0:02:20]} 14. dxc6 {[%clk 0:02:27]}  exf3 {[%clk 0:02:20]} 15. Qxf3 {[%clk 0:02:27]}  bxc6 {[%clk 0:02:19]} 16. Qxc6 {[%clk 0:02:26]}  Rb8 {[%clk 0:02:19]} 17. e4 {[%clk 0:02:21]}  Be6 {[%clk 0:02:09]} 18. Rd1 {[%clk 0:02:12]}  Rb6 {[%clk 0:02:03]} 19. Qc5 {[%clk 0:02:09]}  Qb8 {[%clk 0:02:02]} 20. b3 {[%clk 0:01:39]}  Nc4 {[%clk 0:01:46]} 21. bxc4 {[%clk 0:01:11]}  Bxc3 {[%clk 0:01:44]} 22. Bh6 {[%clk 0:01:11]}  Bxa1 {[%clk 0:01:40]} 23. Bxf8 {[%clk 0:01:08]}  Rb1 {[%clk 0:01:27]} 24. Bf3 {[%clk 0:00:37]}  Rxd1+ {[%clk 0:01:27]} 25. Bxd1 {[%clk 0:00:38]}  Qxf8 {[%clk 0:01:26]} 26. Qxc7 {[%clk 0:00:34]}  Qb4 {[%clk 0:01:20]} 27. Qb8+ {[%clk 0:00:26]}  Qxb8 {[%clk 0:01:18]} 0-1


[Site "https://www.chess.com"]

[Event "Titled Tuesday Blitz October 04 Late 2022"]
[White "Bluebaum, Matthias"]
[Black "Godzwon, Iwo"]
[WhiteFideId "24651516"]
[BlackFideId "21802483"]
[WhiteElo "2633"]
[BlackElo "2284"]
[Result "1/2-1/2"]
[Round "02"]
[TimeControl "180+1"]
[Date "2022.10.04"]
[WhiteClock "0:00:06"]
[BlackClock "0:00:11"]

1. d4 {[%clk 0:03:00]}  Nf6 {[%clk 0:02:54]} 2. c4 {[%clk 0:03:00]}  e6 {[%clk 0:02:50]} 3. Nc3 {[%clk 0:03:00]}  Bb4 {[%clk 0:02:44]} 4. e3 {[%clk 0:03:00]}  O-O {[%clk 0:02:42]} 5. Bd2 {[%clk 0:03:01]}  b6 {[%clk 0:02:41]} 6. Bd3 {[%clk 0:03:00]}  Bb7 {[%clk 0:02:41]} 7. Nf3 {[%clk 0:03:01]}  d6 {[%clk 0:02:38]} 8. b3 {[%clk 0:03:01]}  Nbd7 {[%clk 0:02:36]} 9. a3 {[%clk 0:03:01]}  Bxc3 {[%clk 0:02:36]} 10. Bxc3 {[%clk 0:03:02]}  Ne4 {[%clk 0:02:34]} 11. Bb2 {[%clk 0:03:00]}  f5 {[%clk 0:02:35]} 12. O-O {[%clk 0:03:00]}  Qe7 {[%clk 0:02:25]} 13. Nd2 {[%clk 0:02:59]}  Nxd2 {[%clk 0:02:16]} 14. Qxd2 {[%clk 0:03:00]}  Rf6 {[%clk 0:02:14]} 15. f3 {[%clk 0:02:59]}  Rh6 {[%clk 0:02:12]} 16. Qf2 {[%clk 0:02:54]}  Rf8 {[%clk 0:02:12]} 17. Rae1 {[%clk 0:02:54]}  e5 {[%clk 0:02:12]} 18. d5 {[%clk 0:02:54]}  f4 {[%clk 0:02:03]} 19. exf4 {[%clk 0:02:52]}  Rxf4 {[%clk 0:02:02]} 20. g3 {[%clk 0:02:52]}  Rf8 {[%clk 0:01:58]} 21. f4 {[%clk 0:02:53]}  Qd8 {[%clk 0:01:48]} 22. Qd2 {[%clk 0:02:52]}  Rhf6 {[%clk 0:01:25]} 23. fxe5 {[%clk 0:02:49]}  Rxf1+ {[%clk 0:01:26]} 24. Rxf1 {[%clk 0:02:50]}  Nxe5 {[%clk 0:01:22]} 25. Be4 {[%clk 0:02:18]}  Bc8 {[%clk 0:01:17]} 26. Rxf8+ {[%clk 0:02:06]}  Qxf8 {[%clk 0:01:18]} 27. Qg5 {[%clk 0:01:48]}  Bh3 {[%clk 0:00:58]} 28. Qf4 {[%clk 0:01:47]}  Qxf4 {[%clk 0:00:34]} 29. gxf4 {[%clk 0:01:48]}  Ng6 {[%clk 0:00:35]} 30. f5 {[%clk 0:01:21]}  Nh4 {[%clk 0:00:28]} 31. f6 {[%clk 0:01:20]}  g6 {[%clk 0:00:29]} 32. Kf2 {[%clk 0:01:17]}  Bf5 {[%clk 0:00:27]} 33. Bh1 {[%clk 0:01:16]}  Bc2 {[%clk 0:00:27]} 34. b4 {[%clk 0:01:16]}  Bb3 {[%clk 0:00:27]} 35. c5 {[%clk 0:01:17]}  bxc5 {[%clk 0:00:26]} 36. bxc5 {[%clk 0:01:18]}  Kf7 {[%clk 0:00:22]} 37. c6 {[%clk 0:01:09]}  Nf5 {[%clk 0:00:20]} 38. Bc3 {[%clk 0:01:09]}  a6 {[%clk 0:00:14]} 39. Be4 {[%clk 0:01:03]}  Nh6 {[%clk 0:00:09]} 40. Kf3 {[%clk 0:00:48]}  Ng8 {[%clk 0:00:09]} 41. Ba5 {[%clk 0:00:48]}  Nxf6 {[%clk 0:00:08]} 42. Bxc7 {[%clk 0:00:49]}  Ke7 {[%clk 0:00:07]} 43. Bd3 {[%clk 0:00:27]}  Bxd5+ {[%clk 0:00:07]} 44. Kf4 {[%clk 0:00:27]}  Bxc6 {[%clk 0:00:08]} 45. Kg5 {[%clk 0:00:28]}  Nd5 {[%clk 0:00:07]} 46. Ba5 {[%clk 0:00:28]}  Bb5 {[%clk 0:00:07]} 47. Be4 {[%clk 0:00:27]}  Nf6 {[%clk 0:00:07]} 48. Bf3 {[%clk 0:00:26]}  Nd7 {[%clk 0:00:07]} 49. Kh6 {[%clk 0:00:26]}  Ne5 {[%clk 0:00:07]} 50. Bd1 {[%clk 0:00:25]}  Bd3 {[%clk 0:00:08]} 51. Kxh7 {[%clk 0:00:24]}  Kf6 {[%clk 0:00:08]} 52. Bc7 {[%clk 0:00:21]}  Nc4 {[%clk 0:00:07]} 53. a4 {[%clk 0:00:20]}  d5 {[%clk 0:00:08]} 54. Kh6 {[%clk 0:00:20]}  Ne3 {[%clk 0:00:07]} 55. Bf3 {[%clk 0:00:20]}  Be4 {[%clk 0:00:07]} 56. Be2 {[%clk 0:00:20]}  Nc4 {[%clk 0:00:08]} 57. h4 {[%clk 0:00:20]}  Bf5 {[%clk 0:00:08]} 58. Bd8+ {[%clk 0:00:19]}  Ke5 {[%clk 0:00:08]} 59. Kg5 {[%clk 0:00:19]}  Kd4 {[%clk 0:00:09]} 60. h5 {[%clk 0:00:19]}  gxh5 {[%clk 0:00:05]} 61. Kxf5 {[%clk 0:00:20]}  Nb2 {[%clk 0:00:06]} 62. Bf6+ {[%clk 0:00:19]}  Ke3 {[%clk 0:00:05]} 63. Bxh5 {[%clk 0:00:18]}  Nxa4 {[%clk 0:00:05]} 64. Ke5 {[%clk 0:00:18]}  Nc3 {[%clk 0:00:04]} 65. Bg5+ {[%clk 0:00:19]}  Kd3 {[%clk 0:00:04]} 66. Bg6+ {[%clk 0:00:19]}  Kc4 {[%clk 0:00:05]} 67. Be3 {[%clk 0:00:15]}  a5 {[%clk 0:00:05]} 68. Be8 {[%clk 0:00:06]}  a4 {[%clk 0:00:05]} 69. Bxa4 {[%clk 0:00:04]}  Nxa4 {[%clk 0:00:04]} 70. Bd4 {[%clk 0:00:05]}  Nc5 {[%clk 0:00:04]} 71. Bg1 {[%clk 0:00:06]}  Nd3+ {[%clk 0:00:05]} 72. Kf5 {[%clk 0:00:06]}  Nc1 {[%clk 0:00:05]} 73. Ke5 {[%clk 0:00:05]}  Ne2 {[%clk 0:00:06]} 74. Ba7 {[%clk 0:00:05]}  Nc3 {[%clk 0:00:06]} 75. Bg1 {[%clk 0:00:05]}  Nb5 {[%clk 0:00:07]} 76. Bb6 {[%clk 0:00:05]}  Na3 {[%clk 0:00:08]} 77. Bg1 {[%clk 0:00:05]}  Nc2 {[%clk 0:00:09]} 78. Ba7 {[%clk 0:00:05]}  Nb4 {[%clk 0:00:09]} 79. Bg1 {[%clk 0:00:05]}  Kb5 {[%clk 0:00:09]} 80. Kd4 {[%clk 0:00:04]}  Kc6 {[%clk 0:00:09]} 81. Kc3 {[%clk 0:00:05]}  Na6 {[%clk 0:00:08]} 82. Kd3 {[%clk 0:00:06]}  Nc7 {[%clk 0:00:09]} 83. Bh2 {[%clk 0:00:06]}  Ne6 {[%clk 0:00:10]} 84. Bg1 {[%clk 0:00:06]}  Nc5+ {[%clk 0:00:10]} 85. Bxc5 {[%clk 0:00:06]}  Kxc5 {[%clk 0:00:11]} 86. Kc3 {[%clk 0:00:06]}  d4+ {[%clk 0:00:11]} 1/2-1/2


[Site "https://www.chess.com"]

[Event "Titled Tuesday Blitz October 04 Late 2022"]
[White "Brodowski, Piotr"]
[Black "Andreikin, Dmitry"]
[WhiteFideId "1124480"]
[BlackFideId "4158814"]
[WhiteElo "2361"]
[BlackElo "2736"]
[Result "1/2-1/2"]
[Round "02"]
[TimeControl "180+1"]
[Date "2022.10.04"]
[WhiteClock "0:00:08"]
[BlackClock "0:00:58"]

1. d4 {[%clk 0:03:00]}  d5 {[%clk 0:03:00]} 2. c4 {[%clk 0:02:59]}  e6 {[%clk 0:03:00]} 3. Nf3 {[%clk 0:02:56]}  Nf6 {[%clk 0:03:00]} 4. Nc3 {[%clk 0:02:56]}  dxc4 {[%clk 0:02:58]} 5. e4 {[%clk 0:02:53]}  b5 {[%clk 0:02:57]} 6. e5 {[%clk 0:02:41]}  Nd5 {[%clk 0:02:57]} 7. Nxb5 {[%clk 0:02:40]}  Nb6 {[%clk 0:02:58]} 8. Be2 {[%clk 0:02:37]}  Bb7 {[%clk 0:02:57]} 9. O-O {[%clk 0:02:35]}  Nc6 {[%clk 0:02:56]} 10. Be3 {[%clk 0:02:35]}  Be7 {[%clk 0:02:54]} 11. Qc1 {[%clk 0:02:20]}  a6 {[%clk 0:02:45]} 12. Nc3 {[%clk 0:02:19]}  O-O {[%clk 0:02:41]} 13. Rd1 {[%clk 0:02:13]}  Nb4 {[%clk 0:02:41]} 14. Nd2 {[%clk 0:02:08]}  Qd7 {[%clk 0:02:28]} 15. Nxc4 {[%clk 0:01:46]}  Nxc4 {[%clk 0:02:28]} 16. Bxc4 {[%clk 0:01:46]}  Bxg2 {[%clk 0:02:29]} 17. Kxg2 {[%clk 0:01:19]}  Qc6+ {[%clk 0:02:27]} 18. f3 {[%clk 0:01:16]}  Qxc4 {[%clk 0:02:27]} 19. Ne4 {[%clk 0:01:17]}  Qe2+ {[%clk 0:02:16]} 20. Bf2 {[%clk 0:01:16]}  Nd5 {[%clk 0:02:16]} 21. Qd2 {[%clk 0:01:08]}  Qb5 {[%clk 0:02:13]} 22. b3 {[%clk 0:01:06]}  a5 {[%clk 0:02:06]} 23. Rg1 {[%clk 0:00:52]}  a4 {[%clk 0:02:05]} 24. Kh1 {[%clk 0:00:48]}  axb3 {[%clk 0:01:55]} 25. Qh6 {[%clk 0:00:32]}  g6 {[%clk 0:01:55]} 26. Rg3 {[%clk 0:00:32]}  Nf4 {[%clk 0:01:26]} 27. Rh3 {[%clk 0:00:08]}  Nxh3 {[%clk 0:01:21]} 28. Nf6+ {[%clk 0:00:09]}  Bxf6 {[%clk 0:01:22]} 29. exf6 {[%clk 0:00:10]}  Nxf2+ {[%clk 0:01:19]} 30. Kg2 {[%clk 0:00:10]}  Qg5+ {[%clk 0:01:12]} 31. Qxg5 {[%clk 0:00:10]}  Kh8 {[%clk 0:01:02]} 32. Qh6 {[%clk 0:00:11]}  Rg8 {[%clk 0:01:02]} 33. Kxf2 {[%clk 0:00:11]}  Rxa2+ {[%clk 0:00:58]} 34. Rxa2 {[%clk 0:00:08]}  bxa2 {[%clk 0:00:59]} 35. Qc1 {[%clk 0:00:08]}  Ra8 {[%clk 0:01:00]} 36. Qh6 {[%clk 0:00:08]}  Rg8 {[%clk 0:01:00]} 37. Qc1 {[%clk 0:00:08]}  Ra8 {[%clk 0:00:59]} 38. Qh6 {[%clk 0:00:08]}  Rg8 {[%clk 0:00:58]} 1/2-1/2


[Site "https://www.chess.com"]

[Event "Titled Tuesday Blitz October 04 Late 2022"]
[White "Chen, Justin"]
[Black "Bartel, Mateusz"]
[WhiteFideId "2098199"]
[BlackFideId "1112635"]
[WhiteElo "2289"]
[BlackElo "2530"]
[Result "0-1"]
[Round "02"]
[TimeControl "180+1"]
[Date "2022.10.04"]
[WhiteClock "0:00:01"]
[BlackClock "0:00:17"]

1. e4 {[%clk 0:03:00]}  c5 {[%clk 0:02:59]} 2. Nf3 {[%clk 0:03:01]}  e6 {[%clk 0:02:58]} 3. g3 {[%clk 0:03:01]}  Nc6 {[%clk 0:02:49]} 4. Bg2 {[%clk 0:02:59]}  d6 {[%clk 0:02:45]} 5. O-O {[%clk 0:02:58]}  e5 {[%clk 0:02:45]} 6. c3 {[%clk 0:02:57]}  Nf6 {[%clk 0:02:45]} 7. d4 {[%clk 0:02:56]}  Bg4 {[%clk 0:02:33]} 8. dxe5 {[%clk 0:02:44]}  dxe5 {[%clk 0:02:32]} 9. Qe2 {[%clk 0:02:32]}  Be7 {[%clk 0:02:29]} 10. Na3 {[%clk 0:02:22]}  Qc8 {[%clk 0:02:04]} 11. Bg5 {[%clk 0:02:21]}  Qe6 {[%clk 0:02:01]} 12. Nc4 {[%clk 0:02:17]}  O-O {[%clk 0:01:58]} 13. Ne3 {[%clk 0:02:13]}  Bh5 {[%clk 0:01:48]} 14. Bxf6 {[%clk 0:01:32]}  Bxf6 {[%clk 0:01:48]} 15. Rfd1 {[%clk 0:01:33]}  Rad8 {[%clk 0:01:44]} 16. Qc4 {[%clk 0:01:30]}  Qxc4 {[%clk 0:01:32]} 17. Nxc4 {[%clk 0:01:31]}  Be7 {[%clk 0:01:31]} 18. Ne3 {[%clk 0:01:20]}  f6 {[%clk 0:01:31]} 19. g4 {[%clk 0:01:07]}  Bg6 {[%clk 0:01:28]} 20. Nh4 {[%clk 0:01:07]}  Rxd1+ {[%clk 0:01:24]} 21. Rxd1 {[%clk 0:01:08]}  Bf7 {[%clk 0:01:21]} 22. Nd5 {[%clk 0:00:58]}  Re8 {[%clk 0:01:12]} 23. Nf5 {[%clk 0:00:55]}  Bf8 {[%clk 0:01:11]} 24. Bf1 {[%clk 0:00:53]}  a6 {[%clk 0:01:09]} 25. a4 {[%clk 0:00:31]}  Rb8 {[%clk 0:00:58]} 26. h4 {[%clk 0:00:13]}  h5 {[%clk 0:00:44]} 27. Be2 {[%clk 0:00:10]}  hxg4 {[%clk 0:00:41]} 28. Bxg4 {[%clk 0:00:11]}  b5 {[%clk 0:00:41]} 29. axb5 {[%clk 0:00:11]}  Rxb5 {[%clk 0:00:34]} 30. Ra1 {[%clk 0:00:08]}  a5 {[%clk 0:00:34]} 31. Ra2 {[%clk 0:00:03]}  g6 {[%clk 0:00:25]} 32. Be2 {[%clk 0:00:03]}  Rb8 {[%clk 0:00:21]} 33. Nfe3 {[%clk 0:00:03]}  Kg7 {[%clk 0:00:20]} 34. Bc4 {[%clk 0:00:03]}  Bd6 {[%clk 0:00:20]} 35. Kg2 {[%clk 0:00:03]}  Rh8 {[%clk 0:00:19]} 36. Kg3 {[%clk 0:00:03]}  f5 {[%clk 0:00:16]} 37. exf5 {[%clk 0:00:03]}  e4+ {[%clk 0:00:16]} 38. Kg4 {[%clk 0:00:03]}  Ne5+ {[%clk 0:00:17]} 39. Kh3 {[%clk 0:00:01]}  Nxc4 {[%clk 0:00:17]} 40. Nxc4 {[%clk 0:00:01]}  Bxd5 {[%clk 0:00:17]} 0-1


[Site "https://www.chess.com"]

[Event "Titled Tuesday Blitz October 04 Late 2022"]
[White "Fishbein, Alexander"]
[Black "Bortnyk, Mykola"]
[WhiteFideId "2000377"]
[BlackFideId "14120836"]
[WhiteElo "2410"]
[BlackElo "2582"]
[Result "0-1"]
[Round "02"]
[TimeControl "180+1"]
[Date "2022.10.04"]
[WhiteClock "0:00:04"]
[BlackClock "0:00:30"]

1. e4 {[%clk 0:03:00]}  Nf6 {[%clk 0:02:59]} 2. e5 {[%clk 0:03:00]}  Nd5 {[%clk 0:03:00]} 3. d4 {[%clk 0:03:00]}  d6 {[%clk 0:03:00]} 4. Nf3 {[%clk 0:02:54]}  dxe5 {[%clk 0:03:00]} 5. Nxe5 {[%clk 0:02:54]}  c6 {[%clk 0:03:01]} 6. Bd3 {[%clk 0:02:53]}  Nd7 {[%clk 0:03:01]} 7. Nf3 {[%clk 0:02:51]}  g6 {[%clk 0:03:01]} 8. O-O {[%clk 0:02:49]}  Bg7 {[%clk 0:03:02]} 9. Re1 {[%clk 0:02:48]}  O-O {[%clk 0:02:59]} 10. c3 {[%clk 0:02:46]}  Re8 {[%clk 0:02:54]} 11. Na3 {[%clk 0:02:44]}  e5 {[%clk 0:02:53]} 12. dxe5 {[%clk 0:02:42]}  Nxe5 {[%clk 0:02:52]} 13. Nxe5 {[%clk 0:02:42]}  Bxe5 {[%clk 0:02:53]} 14. Nc4 {[%clk 0:02:39]}  Bc7 {[%clk 0:02:37]} 15. Rxe8+ {[%clk 0:02:37]}  Qxe8 {[%clk 0:02:38]} 16. Qe2 {[%clk 0:02:21]}  Bf5 {[%clk 0:02:30]} 17. Bg5 {[%clk 0:02:10]}  Qxe2 {[%clk 0:02:26]} 18. Bxe2 {[%clk 0:02:09]}  Re8 {[%clk 0:02:27]} 19. Bf3 {[%clk 0:02:05]}  Kg7 {[%clk 0:02:24]} 20. Bd2 {[%clk 0:01:49]}  h6 {[%clk 0:02:20]} 21. Re1 {[%clk 0:01:45]}  Rxe1+ {[%clk 0:02:20]} 22. Bxe1 {[%clk 0:01:46]}  Be6 {[%clk 0:02:17]} 23. b3 {[%clk 0:01:38]}  f5 {[%clk 0:02:15]} 24. Bd2 {[%clk 0:01:34]}  g5 {[%clk 0:02:15]} 25. g3 {[%clk 0:01:32]}  Kf6 {[%clk 0:02:15]} 26. Ne3 {[%clk 0:01:26]}  Nb6 {[%clk 0:02:09]} 27. c4 {[%clk 0:01:25]}  Be5 {[%clk 0:02:10]} 28. h4 {[%clk 0:01:13]}  Nd7 {[%clk 0:02:04]} 29. hxg5+ {[%clk 0:01:12]}  hxg5 {[%clk 0:02:05]} 30. Nc2 {[%clk 0:01:08]}  Bb2 {[%clk 0:01:54]} 31. Be3 {[%clk 0:01:07]}  Ne5 {[%clk 0:01:48]} 32. Be2 {[%clk 0:01:02]}  b6 {[%clk 0:01:44]} 33. f4 {[%clk 0:01:01]}  gxf4 {[%clk 0:01:43]} 34. gxf4 {[%clk 0:01:00]}  Ng6 {[%clk 0:01:41]} 35. Bh5 {[%clk 0:01:00]}  c5 {[%clk 0:01:39]} 36. Kf2 {[%clk 0:00:56]}  Bd7 {[%clk 0:01:35]} 37. Ne1 {[%clk 0:00:53]}  Bc6 {[%clk 0:01:31]} 38. Nd3 {[%clk 0:00:53]}  Bc3 {[%clk 0:01:31]} 39. Bxg6 {[%clk 0:00:52]}  Kxg6 {[%clk 0:01:29]} 40. Ne5+ {[%clk 0:00:52]}  Bxe5 {[%clk 0:01:28]} 41. fxe5 {[%clk 0:00:52]}  Kf7 {[%clk 0:01:26]} 42. Kg3 {[%clk 0:00:52]}  Ke6 {[%clk 0:01:26]} 43. Kf4 {[%clk 0:00:52]}  Be4 {[%clk 0:01:27]} 44. a3 {[%clk 0:00:49]}  a5 {[%clk 0:01:13]} 45. b4 {[%clk 0:00:41]}  cxb4 {[%clk 0:01:00]} 46. axb4 {[%clk 0:00:41]}  axb4 {[%clk 0:01:01]} 47. Bxb6 {[%clk 0:00:40]}  Bd3 {[%clk 0:01:02]} 48. Ba5 {[%clk 0:00:29]}  b3 {[%clk 0:01:01]} 49. Bc3 {[%clk 0:00:29]}  Bxc4 {[%clk 0:01:02]} 50. Bb2 {[%clk 0:00:28]}  Bb5 {[%clk 0:01:01]} 51. Bc3 {[%clk 0:00:28]}  Bd7 {[%clk 0:01:01]} 52. Bb2 {[%clk 0:00:26]}  Kd5 {[%clk 0:01:01]} 53. Ke3 {[%clk 0:00:24]}  Kc4 {[%clk 0:00:56]} 54. Ba1 {[%clk 0:00:23]}  Be6 {[%clk 0:00:55]} 55. Bb2 {[%clk 0:00:23]}  Bc8 {[%clk 0:00:42]} 56. Ba1 {[%clk 0:00:23]}  Bd7 {[%clk 0:00:27]} 57. Bb2 {[%clk 0:00:22]}  Kb4 {[%clk 0:00:22]} 58. Kf4 {[%clk 0:00:18]}  Kc5 {[%clk 0:00:20]} 59. Ba1 {[%clk 0:00:13]}  Kc4 {[%clk 0:00:17]} 60. Ke3 {[%clk 0:00:12]}  Kd5 {[%clk 0:00:18]} 61. Kf4 {[%clk 0:00:12]}  Ke6 {[%clk 0:00:18]} 62. Bb2 {[%clk 0:00:11]}  Bc8 {[%clk 0:00:19]} 63. Ba1 {[%clk 0:00:11]}  Kf7 {[%clk 0:00:20]} 64. Kg5 {[%clk 0:00:09]}  Ke7 {[%clk 0:00:18]} 65. Bb2 {[%clk 0:00:08]}  Ke6 {[%clk 0:00:18]} 66. Kf4 {[%clk 0:00:08]}  Kf7 {[%clk 0:00:19]} 67. Kg5 {[%clk 0:00:08]}  Be6 {[%clk 0:00:18]} 68. Ba1 {[%clk 0:00:07]}  Ke8 {[%clk 0:00:19]} 69. Bb2 {[%clk 0:00:04]}  Ke7 {[%clk 0:00:19]} 70. Ba1 {[%clk 0:00:04]}  Kd7 {[%clk 0:00:20]} 71. Kf4 {[%clk 0:00:03]}  Kc6 {[%clk 0:00:21]} 72. Bb2 {[%clk 0:00:02]}  Kb5 {[%clk 0:00:21]} 73. Ke3 {[%clk 0:00:01]}  Kc4 {[%clk 0:00:22]} 74. Ba1 {[%clk 0:00:01]}  Bd7 {[%clk 0:00:23]} 75. Bb2 {[%clk 0:00:01]}  f4+ {[%clk 0:00:24]} 76. Kxf4 {[%clk 0:00:01]}  Kd3 {[%clk 0:00:25]} 77. Ba1 {[%clk 0:00:01]}  Be6 {[%clk 0:00:26]} 78. Bb2 {[%clk 0:00:01]}  Kc2 {[%clk 0:00:27]} 79. Ba1 {[%clk 0:00:02]}  Kc1 {[%clk 0:00:27]} 80. Bd4 {[%clk 0:00:02]}  Kd2 {[%clk 0:00:28]} 81. Ke4 {[%clk 0:00:02]}  Bc8 {[%clk 0:00:28]} 82. Kd5 {[%clk 0:00:02]}  Bb7+ {[%clk 0:00:28]} 83. Kd6 {[%clk 0:00:02]}  Kd3 {[%clk 0:00:29]} 84. Ba1 {[%clk 0:00:01]}  Ba6 {[%clk 0:00:29]} 85. e6 {[%clk 0:00:01]}  Bb5 {[%clk 0:00:30]} 86. e7 {[%clk 0:00:02]}  Be8 {[%clk 0:00:31]} 87. Kc7 {[%clk 0:00:02]}  b2 {[%clk 0:00:31]} 88. Kd8 {[%clk 0:00:03]}  bxa1=Q {[%clk 0:00:31]} 89. Kxe8 {[%clk 0:00:04]}  Qe5 {[%clk 0:00:31]} 90. Kd8 {[%clk 0:00:04]}  Qd6+ {[%clk 0:00:30]} 0-1


[Site "https://www.chess.com"]